bitfinex/quotes_BTCUSD_20230901
["timestamp","ask_amount","ask_price","bid_price","bid_amount"]
[1693591312267,0.011,25484.0,25483.0,0.003]
[1693591312489,0.4772,25486.0,25483.0,0.003]
[1693591312688,0.011,25484.0,25483.0,0.006]
[1693591312885,0.011,25484.0,25483.0,0.003]
[1693591313153,0.79678678,25486.0,25482.0,0.08]
[1693591313362,0.79678678,25486.0,25481.0,0.1642]
[1693591313363,0.79678678,25486.0,25481.0,0.1842]
[1693591313564,0.4497,25483.0,25480.0,0.0001]
[1693591313789,0.4897,25481.0,25480.0,0.0001]
[1693591314009,0.4097,25477.0,25475.0,0.019594]
[1693591314209,0.60192149,25476.0,25475.0,0.019594]
[1693591314612,0.44708678,25476.0,25475.0,0.019594]
[1693591315026,0.06,25480.0,25475.0,0.203794]
[1693591315231,0.04,25480.0,25476.0,0.02]
[1693591315440,0.06,25480.0,25476.0,0.02]
[1693591315846,0.06,25480.0,25476.0,0.04]
[1693591316054,0.38708678,25479.0,25475.0,0.102594]
[1693591316254,0.61794149,25479.0,25475.0,0.022594]
[1693591316465,0.46226678,25479.0,25476.0,0.083]
[1693591316679,0.037,25480.0,25476.0,0.2472]
[1693591316885,0.037,25480.0,25477.0,0.08]
[1693591317492,0.074,25480.0,25477.0,0.08]
[1693591317701,0.037,25480.0,25477.0,0.08]
[1693591317904,0.04,25481.0,25477.0,0.08]
[1693591318107,0.023,25480.0,25477.0,0.08]
[1693591318310,0.42708678,25481.0,25477.0,0.086]
[1693591318671,0.42708678,25481.0,25477.0,0.083]
[1693591319102,0.007,25481.0,25479.0,0.1642]
[1693591319357,0.007,25481.0,25479.0,0.2042]
[1693591319496,0.007,25481.0,25479.0,0.08]
[1693591319697,0.017,25481.0,25479.0,0.08]
[1693591319942,0.017,25481.0,25480.0,0.02]
[1693591320338,0.01,25481.0,25480.0,0.02]
[1693591320574,0.50298678,25481.0,25479.0,0.003]
[1693591320743,0.043,25481.0,25480.0,0.02]
[1693591321105,0.09097321,25483.0,25480.0,0.02]
[1693591321106,0.05097321,25483.0,25480.0,0.02]
[1693591321317,0.037,25481.0,25480.0,0.02]
[1693591321529,0.60460678,25481.0,25480.0,0.003]
[1693591321738,0.48408678,25481.0,25480.0,0.003]
[1693591321941,0.04,25480.0,25478.0,0.02]
[1693591322142,0.42708678,25480.0,25478.0,0.02]
[1693591322855,0.13226,25481.0,25475.0,0.243494]
[1693591322856,0.06,25478.0,25475.0,0.099594]
[1693591323131,0.08,25476.0,25475.0,0.019594]
[1693591323312,0.46708678,25476.0,25475.0,0.019594]
[1693591323761,0.56044678,25476.0,25475.0,0.019594]
[1693591323965,0.76584678,25476.0,25475.0,0.019594]
[1693591324166,0.75216678,25476.0,25475.0,0.019594]
[1693591324383,0.75240678,25476.0,25475.0,0.019594]
[1693591324589,0.61464678,25476.0,25475.0,0.019594]
[1693591324788,0.65184678,25476.0,25475.0,0.022594]
[1693591324941,0.83508678,25476.0,25475.0,0.022594]
[1693591325146,0.79920678,25476.0,25475.0,0.019594]
[1693591325349,0.08,25475.0,25474.0,0.019594]
[1693591325549,0.08,25474.0,25473.0,0.019594]
[1693591325794,1.09620678,25474.0,25473.0,0.019594]
[1693591326034,1.05100678,25474.0,25473.0,0.019594]
[1693591326236,0.46708678,25474.0,25473.0,0.019594]
[1693591326389,0.54232678,25474.0,25473.0,0.019594]
[1693591326593,0.55588678,25474.0,25473.0,0.019594]
[1693591326797,0.55564678,25474.0,25473.0,0.019594]
[1693591326999,0.59148678,25474.0,25473.0,0.019594]
[1693591327196,0.48708678,25474.0,25473.0,0.019594]
[1693591327540,0.52308678,25474.0,25473.0,0.022594]
[1693591327743,0.53908678,25474.0,25473.0,0.022594]
[1693591328049,0.54408678,25474.0,25473.0,0.022594]
[1693591328260,0.077,25474.0,25473.0,0.022594]
[1693591328465,0.077,25474.0,25473.0,0.102594]
[1693591328924,0.46408678,25474.0,25473.0,0.022594]
[1693591329136,0.63618678,25474.0,25473.0,0.022594]
[1693591329343,1.04564678,25474.0,25473.0,0.022594]
[1693591329558,1.05380678,25474.0,25473.0,0.022594]
[1693591329763,1.05668678,25474.0,25473.0,0.022594]
[1693591329973,1.06238678,25474.0,25473.0,0.022594]
[1693591330182,1.06346678,25474.0,25473.0,0.022594]
[1693591330389,1.06514678,25474.0,25473.0,0.022594]
[1693591330595,1.06652678,25474.0,25473.0,0.022594]
[1693591330794,1.06568678,25474.0,25473.0,0.022594]
[1693591331001,1.05878678,25474.0,25473.0,0.022594]
[1693591331206,1.03890678,25474.0,25473.0,0.022594]
[1693591331408,1.03944678,25474.0,25473.0,0.022594]
[1693591331585,1.05806678,25474.0,25473.0,0.022594]
[1693591331796,1.06874678,25474.0,25473.0,0.022594]
[1693591332121,1.06556678,25474.0,25473.0,0.022594]
[1693591332321,1.06520678,25474.0,25473.0,0.022594]
[1693591332520,1.05836678,25474.0,25473.0,0.022594]
[1693591332739,1.05386678,25474.0,25473.0,0.022594]
[1693591332852,1.03880678,25474.0,25473.0,0.022594]
[1693591333053,0.93378678,25474.0,25473.0,0.022594]
[1693591333477,1.00458678,25474.0,25473.0,0.022594]
[1693591333679,1.00470678,25474.0,25473.0,0.022594]
[1693591333880,1.01628678,25474.0,25473.0,0.022594]
[1693591334179,1.01778678,25474.0,25473.0,0.022594]
[1693591334424,1.01784678,25474.0,25473.0,0.022594]
[1693591334622,1.01667404,25474.0,25473.0,0.022594]
[1693591334822,1.01787404,25474.0,25473.0,0.022594]
[1693591335033,1.01799404,25474.0,25473.0,0.022594]
[1693591335244,1.01679404,25474.0,25473.0,0.022594]
[1693591335462,1.01367404,25474.0,25473.0,0.022594]
[1693591335651,1.01469404,25474.0,25473.0,0.022594]
[1693591335880,1.01457404,25474.0,25473.0,0.022594]
[1693591336065,1.01157404,25474.0,25473.0,0.022594]
[1693591336266,1.01253404,25474.0,25473.0,0.022594]
[1693591336399,1.01277404,25474.0,25473.0,0.022594]
[1693591336610,1.00635404,25474.0,25473.0,0.022594]
[1693591336814,1.01301404,25474.0,25473.0,0.022594]
[1693591337013,1.01295404,25474.0,25473.0,0.022594]
[1693591337324,0.94248678,25474.0,25473.0,0.019594]
[1693591337567,0.94266678,25474.0,25473.0,0.019594]
[1693591337756,1.02228678,25474.0,25473.0,0.024594]
[1693591337918,1.02234678,25474.0,25473.0,0.024594]
[1693591338381,1.01976678,25474.0,25473.0,0.024594]
[1693591338600,1.06820678,25474.0,25473.0,0.024594]
[1693591338809,1.06772678,25474.0,25473.0,0.024594]
[1693591338981,1.06598678,25474.0,25473.0,0.024594]
[1693591339197,1.06574678,25474.0,25473.0,0.024594]
[1693591339339,1.03470678,25474.0,25473.0,0.024594]
[1693591339517,1.00134678,25474.0,25473.0,0.024594]
[1693591339723,1.00128678,25474.0,25473.0,0.024594]
[1693591339985,0.93378678,25474.0,25473.0,0.024594]
[1693591341102,0.59482678,25474.0,25473.0,0.024594]
[1693591341305,0.46408678,25474.0,25473.0,0.024594]
[1693591341518,0.52408678,25474.0,25473.0,0.024594]
[1693591342149,0.077,25474.0,25473.0,0.104594]
[1693591343863,0.46408678,25474.0,25473.0,0.104594]
[1693591347634,0.077,25474.0,25473.0,0.104594]
[1693591348177,0.077,25474.0,25473.0,0.268794]
[1693591348178,0.072,25474.0,25473.0,0.268794]
[1693591348592,0.072,25474.0,25473.0,0.313794]
[1693591348797,0.072,25474.0,25473.0,0.70088078]
[1693591349178,0.036,25474.0,25473.0,0.70088078]
[1693591349596,0.003,25474.0,25473.0,0.73788078]
[1693591349799,0.005,25479.0,25474.0,0.015]
[1693591350002,0.005,25479.0,25476.0,0.1642]
[1693591350223,0.065,25481.0,25480.0,0.054594]
[1693591351308,0.068,25481.0,25480.0,0.055594]
[1693591352672,0.082,25481.0,25480.0,0.057594]
[1693591353634,0.082,25481.0,25480.0,0.077594]
[1693591355316,0.082,25481.0,25480.0,0.057594]
[1693591355540,0.082,25481.0,25480.0,0.077594]
[1693591356889,0.022,25481.0,25480.0,0.077594]
[1693591357537,0.20217873,25481.0,25480.0,0.077594]
[1693591357755,0.022,25481.0,25480.0,0.077594]
[1693591361057,1.01362149,25481.0,25480.0,0.003]
[1693591361195,1.50641264,25481.0,25480.0,0.003]
[1693591361432,0.4547,25475.0,25474.0,0.054594]
[1693591361629,0.4547,25475.0,25474.0,0.074594]
[1693591361630,0.99662149,25475.0,25474.0,0.074594]
[1693591361886,0.43208678,25475.0,25474.0,0.074594]
[1693591362307,0.39208678,25475.0,25474.0,0.074594]
[1693591362507,0.005,25475.0,25474.0,0.074594]
[1693591362916,0.045,25476.0,25475.0,0.074594]
[1693591363121,0.43208678,25476.0,25475.0,0.074594]
[1693591363533,0.93148678,25476.0,25475.0,0.054594]
[1693591363768,0.93958678,25476.0,25471.0,0.2473]
[1693591363971,0.5516,25476.0,25475.0,0.054594]
[1693591364177,0.5516,25476.0,25474.0,0.021]
[1693591364178,0.49354,25475.0,25474.0,0.074594]
[1693591364380,0.49372,25475.0,25474.0,0.074594]
[1693591364515,0.4147,25475.0,25474.0,0.074594]
[1693591364717,0.48136,25475.0,25474.0,0.074594]
[1693591364931,0.48082,25475.0,25474.0,0.074594]
[1693591365132,0.4147,25475.0,25474.0,0.074594]
[1693591365336,0.49042,25475.0,25474.0,0.074594]
[1693591365538,0.49408,25475.0,25474.0,0.074594]
[1693591365734,0.5017,25475.0,25474.0,0.054594]
[1693591365933,0.48676,25475.0,25474.0,0.074594]
[1693591366197,0.39208678,25475.0,25474.0,0.074594]
[1693591366396,0.012,25475.0,25474.0,0.076594]
[1693591366983,0.015,25475.0,25474.0,0.077594]
[1693591368937,0.015,25475.0,25474.0,0.092594]
[1693591369440,0.015,25475.0,25474.0,1.03334916]
[1693591369596,0.9856,25483.0,25482.0,0.169594]
[1693591369750,0.005,25487.0,25483.0,0.015]
[1693591370179,0.005,25487.0,25482.0,0.2592]
[1693591370398,0.045,25489.0,25488.0,0.054594]
[1693591370598,0.61946272,25489.0,25488.0,0.054594]
[1693591370798,1.09840272,25489.0,25488.0,0.054594]
[1693591371066,1.02916272,25489.0,25488.0,0.054594]
[1693591372187,1.10050272,25489.0,25488.0,0.054594]
[1693591372389,1.09630272,25489.0,25488.0,0.054594]
[1693591372589,1.13224272,25489.0,25488.0,0.058594]
[1693591372794,1.13176272,25489.0,25488.0,0.058594]
[1693591372977,1.19078272,25489.0,25488.0,0.061594]
[1693591373212,1.19102272,25489.0,25488.0,0.061594]
[1693591373412,1.14580272,25489.0,25488.0,0.058594]
[1693591373587,1.18066272,25489.0,25488.0,0.062594]
[1693591373741,1.14730272,25489.0,25488.0,0.058594]
[1693591373942,1.14790272,25489.0,25488.0,0.058594]
[1693591374142,1.18232272,25489.0,25488.0,0.061594]
[1693591374344,1.17814824,25489.0,25488.0,0.057594]
[1693591374548,1.17520824,25489.0,25488.0,0.057594]
[1693591374753,1.21724824,25489.0,25488.0,0.060594]
[1693591375012,1.21856824,25489.0,25488.0,0.060594]
[1693591375168,1.21838824,25489.0,25488.0,0.060594]
[1693591375387,1.22108824,25489.0,25488.0,0.006]
[1693591375582,1.24916824,25489.0,25488.0,0.006]
[1693591375892,1.24874824,25489.0,25488.0,0.006]
[1693591376120,1.24262824,25489.0,25488.0,0.006]
[1693591376296,1.23788824,25489.0,25488.0,0.006]
[1693591376509,1.23434824,25489.0,25488.0,0.006]
[1693591376727,1.23416824,25489.0,25488.0,0.006]
[1693591376929,1.23386824,25489.0,25488.0,0.006]
[1693591377131,1.23380824,25489.0,25488.0,0.006]
[1693591377457,1.23212824,25489.0,25488.0,0.006]
[1693591377685,1.23194824,25489.0,25488.0,0.006]
[1693591377891,1.23182824,25489.0,25488.0,0.006]
[1693591378026,1.23248824,25489.0,25488.0,0.006]
[1693591378227,1.23446824,25489.0,25488.0,0.006]
[1693591378454,1.26568824,25489.0,25488.0,0.006]
[1693591378610,1.26856824,25489.0,25488.0,0.006]
[1693591378819,1.25428824,25489.0,25488.0,0.060594]
[1693591379185,1.25368824,25489.0,25488.0,0.060594]
[1693591379375,1.25404824,25489.0,25488.0,0.060594]
[1693591379582,1.25398824,25489.0,25488.0,0.060594]
[1693591379787,1.25812824,25489.0,25488.0,0.006]
[1693591379951,1.25812824,25489.0,25488.0,0.060594]
[1693591379952,1.27144824,25489.0,25488.0,0.060594]
[1693591380126,1.20098824,25489.0,25488.0,0.060594]
[1693591380499,1.20422824,25489.0,25488.0,0.060594]
[1693591380697,1.20530824,25489.0,25488.0,0.060594]
[1693591380903,1.21112824,25489.0,25488.0,0.060594]
[1693591381102,1.22894824,25489.0,25488.0,0.006]
[1693591381317,1.47048824,25489.0,25488.0,0.006]
[1693591381516,1.56307808,25489.0,25488.0,0.006]
[1693591381645,1.56355808,25489.0,25488.0,0.006]
[1693591381854,1.61851808,25489.0,25488.0,0.006]
[1693591382064,2.28629521,25489.0,25488.0,0.006]
[1693591382279,2.0030879,25489.0,25488.0,0.006]
[1693591382544,1.9640879,25489.0,25488.0,0.006]
[1693591382760,1.87219044,25489.0,25488.0,0.006]
[1693591382962,1.61390824,25489.0,25488.0,0.006]
[1693591383172,1.26076824,25489.0,25488.0,0.003]
[1693591383472,1.29226824,25489.0,25488.0,0.004]
[1693591383832,0.06,25487.0,25486.0,0.054594]
[1693591384042,0.065,25486.0,25485.0,0.074594]
[1693591384175,0.63946272,25486.0,25485.0,0.074594]
[1693591384393,1.04916272,25486.0,25485.0,0.074594]
[1693591385147,1.12080272,25486.0,25485.0,0.074594]
[1693591385337,1.11846272,25486.0,25485.0,0.074594]
[1693591385478,1.11708272,25486.0,25485.0,0.074594]
[1693591385677,1.11708272,25486.0,25485.0,0.076594]
[1693591385678,0.24937594,25486.0,25485.0,0.076594]
[1693591385878,0.057,25486.0,25485.0,0.076594]
[1693591386080,0.062,25486.0,25485.0,0.076594]
[1693591387051,0.026,25486.0,25485.0,0.075594]
[1693591387219,0.054,25486.0,25485.0,0.076594]
[1693591391560,0.62845654,25486.0,25485.0,0.076594]
[1693591391906,0.78546654,25486.0,25485.0,0.076594]
[1693591392020,0.20601,25486.0,25485.0,0.076594]
[1693591392674,0.049,25486.0,25485.0,0.171594]
[1693591393868,0.049,25486.0,25485.0,0.55868078]
[1693591394093,0.15580315,25488.0,25487.0,0.169594]
[1693591394296,0.005,25495.0,25494.0,0.054594]
[1693591394506,0.18719301,25496.0,25495.0,0.054594]
[1693591394700,0.22514285,25499.0,25498.0,0.054594]
[1693591394701,0.0976419,25499.0,25498.0,0.054594]
[1693591394905,0.57930885,25499.0,25498.0,0.054594]
[1693591395137,0.18722207,25499.0,25498.0,0.054594]
[1693591395351,0.18722207,25499.0,25498.0,0.313794]
[1693591395780,0.18722207,25499.0,25498.0,0.149594]
[1693591395983,0.34413307,25499.0,25498.0,0.149594]
[1693591396189,0.34413307,25499.0,25498.0,0.109594]
[1693591396387,0.34413307,25499.0,25498.0,0.149594]
[1693591396754,0.34413307,25499.0,25498.0,0.152594]
[1693591396755,0.38013307,25499.0,25498.0,0.152594]
[1693591397160,0.156911,25499.0,25498.0,0.054594]
[1693591397356,0.34483959,25499.0,25498.0,0.160594]
[1693591397517,0.34583959,25499.0,25498.0,0.165594]
[1693591397711,0.34583959,25499.0,25498.0,0.145594]
[1693591397937,0.34583959,25499.0,25498.0,0.105594]
[1693591399669,0.34583959,25499.0,25498.0,0.070594]
[1693591399827,0.34583959,25499.0,25498.0,0.090594]
[1693591400025,0.158911,25499.0,25498.0,0.090594]
[1693591400431,0.002,25499.0,25498.0,0.090594]
[1693591401039,0.0214,25499.0,25498.0,0.090594]
[1693591404168,0.0214,25499.0,25498.0,0.47768078]
[1693591404368,0.002,25499.0,25498.0,0.47768078]
[1693591404770,0.002,25499.0,25498.0,0.45768078]
[1693591405678,0.002,25499.0,25498.0,0.070594]
[1693591416721,0.007,25499.0,25498.0,0.070594]
[1693591416916,0.46266678,25499.0,25498.0,0.070594]
[1693591417115,0.47268678,25499.0,25498.0,0.070594]
[1693591417338,0.47304678,25499.0,25498.0,0.070594]
[1693591417553,0.49302678,25499.0,25498.0,0.070594]
[1693591417888,1.15059358,25499.0,25498.0,0.016]
[1693591418019,1.36219358,25499.0,25498.0,0.016]
[1693591418231,1.57488154,25499.0,25498.0,0.016]
[1693591418431,1.57488154,25499.0,25490.0,0.0001]
[1693591418432,0.005,25492.0,25491.0,0.054594]
[1693591418632,0.005,25491.0,25490.0,0.054694]
[1693591418833,0.73022149,25491.0,25490.0,0.0001]
[1693591419039,0.84290149,25491.0,25490.0,0.0001]
[1693591419236,0.83988878,25491.0,25490.0,0.0001]
[1693591419624,0.69396878,25491.0,25490.0,0.0001]
[1693591419823,0.161982,25491.0,25490.0,0.054694]
[1693591420035,0.164982,25491.0,25490.0,0.072694]
[1693591420286,0.161982,25491.0,25490.0,0.054694]
[1693591420705,0.156982,25491.0,25490.0,0.054694]
[1693591420909,0.156982,25491.0,25490.0,0.68208078]
[1693591420910,0.175982,25491.0,25490.0,0.68208078]
[1693591421118,0.1535,25496.0,25490.0,0.68008078]
[1693591421325,0.005,25494.0,25493.0,0.054594]
[1693591421575,0.005,25494.0,25493.0,0.177894]
[1693591421780,0.005,25494.0,25493.0,0.054594]
[1693591422164,0.161945,25494.0,25493.0,0.054594]
[1693591423001,0.164945,25494.0,25493.0,0.073594]
[1693591423609,0.166945,25494.0,25493.0,0.090594]
[1693591426097,0.35416638,25494.0,25493.0,0.090594]
[1693591426297,0.166945,25494.0,25493.0,0.090594]
[1693591426925,0.161945,25494.0,25493.0,0.090594]
[1693591427278,0.161945,25494.0,25493.0,0.64198078]
[1693591427576,0.161945,25494.0,25493.0,0.75698078]
[1693591427577,0.005,25494.0,25493.0,0.75698078]
[1693591428308,0.005,25494.0,25493.0,0.369894]
[1693591429367,0.005,25494.0,25493.0,0.090594]
[1693591430393,0.01,25494.0,25493.0,0.090594]
[1693591433962,0.39708678,25494.0,25493.0,0.090594]
[1693591435786,0.39708678,25494.0,25493.0,0.070594]
[1693591435991,0.46356678,25494.0,25493.0,0.090594]
[1693591436143,0.39708678,25494.0,25493.0,0.090594]
[1693591436352,1.31834149,25494.0,25493.0,0.036]
[1693591436552,1.21773278,25494.0,25493.0,0.036]
[1693591436770,1.35897278,25494.0,25493.0,0.036]
[1693591436930,1.21761278,25494.0,25493.0,0.036]
[1693591437138,1.20825278,25494.0,25493.0,0.017]
[1693591437343,1.19259278,25494.0,25493.0,0.017]
[1693591437563,1.19259278,25494.0,25493.0,0.002]
[1693591437564,1.20233278,25494.0,25493.0,0.002]
[1693591437764,1.20197278,25494.0,25493.0,0.002]
[1693591437968,1.03833278,25494.0,25493.0,0.005]
[1693591438171,1.03833278,25494.0,25493.0,0.039594]
[1693591438172,0.047,25494.0,25493.0,0.039594]
[1693591438379,0.047,25494.0,25493.0,0.059594]
[1693591438780,0.028,25494.0,25493.0,0.057594]
[1693591438960,0.064,25494.0,25493.0,0.059594]
[1693591439382,0.005,25494.0,25493.0,0.054594]
[1693591439580,0.005,25494.0,25493.0,0.056594]
[1693591439581,0.024,25494.0,25493.0,0.056594]
[1693591439877,0.06,25494.0,25493.0,0.059594]
[1693591440254,0.041,25494.0,25493.0,0.057594]
[1693591440663,0.039,25494.0,25493.0,0.074594]
[1693591440873,0.039,25494.0,25493.0,0.63668078]
[1693591441077,0.039,25494.0,25493.0,0.93668078]
[1693591441912,0.036,25494.0,25493.0,0.91968078]
[1693591442115,0.039,25494.0,25493.0,0.95668078]
[1693591442536,0.039,25494.0,25493.0,0.89668078]
[1693591443379,0.003,25494.0,25493.0,0.89368078]
[1693591443583,0.003,25494.0,25493.0,0.95368078]
[1693591443752,0.007,25494.0,25493.0,0.97789978]
[1693591444318,0.007,25494.0,25493.0,0.91789978]
[1693591445133,0.007,25494.0,25493.0,0.89789978]
[1693591446297,0.007,25494.0,25493.0,0.59789978]
[1693591449499,0.007,25494.0,25493.0,0.97789978]
[1693591453284,0.007,25494.0,25493.0,0.135813]
[1693591453512,0.007,25494.0,25493.0,0.115813]
[1693591453741,0.012,25494.0,25493.0,0.115813]
[1693591453938,0.012,25494.0,25493.0,0.135813]
[1693591456608,0.012,25494.0,25493.0,0.065]
[1693591457710,0.008,25494.0,25493.0,0.037]
[1693591457989,0.008,25494.0,25490.0,0.070913]
[1693591457990,0.005,25491.0,25490.0,0.070913]
[1693591459190,0.005,25491.0,25490.0,0.0001]
[1693591459369,0.008,25491.0,25490.0,0.101913]
[1693591459624,0.008,25491.0,25490.0,0.126913]
[1693591459625,0.011,25491.0,25490.0,0.126913]
[1693591459820,0.011,25491.0,25490.0,0.0561]
[1693591460048,0.011,25491.0,25490.0,0.126913]
[1693591460278,0.011,25491.0,25490.0,0.0561]
[1693591460907,0.07994,25491.0,25490.0,0.0561]
[1693591461081,0.07958,25491.0,25490.0,0.0561]
[1693591461286,0.07832,25491.0,25490.0,0.0001]
[1693591461485,0.006,25491.0,25490.0,0.0051]
[1693591461686,0.007,25491.0,25490.0,0.0061]
[1693591461887,0.006,25491.0,25490.0,0.0061]
[1693591462216,0.027,25491.0,25490.0,0.0021]
[1693591462367,0.049,25491.0,25490.0,0.0051]
[1693591463977,0.1324,25491.0,25490.0,0.0051]
[1693591464175,0.1279,25491.0,25490.0,0.0051]
[1693591464379,0.12814,25491.0,25490.0,0.0051]
[1693591464585,0.12856,25491.0,25490.0,0.0051]
[1693591464799,0.049,25491.0,25490.0,0.0051]
[1693591465814,0.11842,25491.0,25490.0,0.0051]
[1693591466022,0.11854,25491.0,25490.0,0.0051]
[1693591466391,0.049,25491.0,25490.0,0.0051]
[1693591467206,0.84578678,25491.0,25490.0,0.0051]
[1693591467411,0.96381378,25491.0,25490.0,0.0051]
[1693591467624,0.96729378,25491.0,25490.0,0.0051]
[1693591467831,1.13345378,25491.0,25490.0,0.0051]
[1693591467954,1.13519378,25491.0,25490.0,0.0051]
[1693591468161,1.13453378,25491.0,25490.0,0.0051]
[1693591468341,1.13573378,25491.0,25490.0,0.0051]
[1693591468544,1.13627378,25491.0,25490.0,0.0051]
[1693591468764,0.55141378,25491.0,25490.0,0.0051]
[1693591468966,0.51583378,25491.0,25490.0,0.0051]
[1693591469164,0.51967378,25491.0,25490.0,0.0051]
[1693591469365,0.52027378,25491.0,25490.0,0.0051]
[1693591469770,0.51979378,25491.0,25490.0,0.0051]
[1693591469977,0.52147378,25491.0,25490.0,0.0051]
[1693591470176,0.52627378,25491.0,25490.0,0.0051]
[1693591470400,0.52711378,25491.0,25490.0,0.0051]
[1693591470576,0.52705378,25491.0,25490.0,0.0051]
[1693591470777,0.52771378,25491.0,25490.0,0.0051]
[1693591471112,0.52777378,25491.0,25490.0,0.0051]
[1693591471258,0.52699378,25491.0,25490.0,0.0051]
[1693591471463,0.51817378,25491.0,25490.0,0.0051]
[1693591471778,0.51829378,25491.0,25490.0,0.0051]
[1693591471983,0.51787378,25491.0,25456.0,1.73390887]
[1693591472161,0.51787378,25491.0,25479.0,0.09393699]
[1693591472162,0.15483471,25481.0,25479.0,0.09393699]
[1693591472365,0.66,25485.0,25480.0,0.1643]
[1693591472855,0.10092,25484.0,25478.0,0.1643]
[1693591473404,0.257903,25484.0,25478.0,0.1643]
[1693591473931,0.41673771,25484.0,25479.0,0.38708678]
[1693591474111,0.160983,25484.0,25479.0,0.38708678]
[1693591474488,0.160983,25484.0,25480.0,0.3]
[1693591474739,0.160983,25484.0,25481.0,0.38708678]
[1693591474993,0.06912,25483.0,25481.0,0.38708678]
[1693591475196,0.06936,25483.0,25481.0,0.38708678]
[1693591475323,0.08112,25483.0,25481.0,0.38708678]
[1693591475531,0.08112,25483.0,25477.0,0.2123]
[1693591475532,0.66,25482.0,25477.0,0.2123]
[1693591475732,0.15483471,25481.0,25478.0,0.38708678]
[1693591475956,0.24663471,25481.0,25478.0,0.38708678]
[1693591476205,0.07164,25480.0,25478.0,0.38708678]
[1693591476427,0.74606,25482.0,25478.0,0.38708678]
[1693591476562,0.75128,25482.0,25478.0,0.38708678]
[1693591476760,0.68,25482.0,25478.0,0.38708678]
[1693591477032,0.68,25482.0,25481.0,0.009]
[1693591477184,0.004,25481.0,25478.0,0.38708678]
[1693591477365,0.004,25481.0,25478.0,0.39608678]
[1693591477569,0.684,25482.0,25478.0,0.39608678]
[1693591478029,0.688,25482.0,25478.0,0.39608678]
[1693591478233,0.684,25482.0,25478.0,0.38708678]
[1693591478767,0.684,25482.0,25478.0,0.39608678]
[1693591478768,0.004,25481.0,25478.0,0.39608678]
[1693591478900,0.684,25482.0,25478.0,0.38708678]
[1693591479286,0.02,25481.0,25478.0,0.38708678]
[1693591479483,0.1,25481.0,25478.0,0.38708678]
[1693591480135,0.1,25481.0,25478.0,0.39608678]
[1693591480333,0.104,25481.0,25478.0,0.39608678]
[1693591480528,0.104,25481.0,25478.0,0.38708678]
[1693591480871,0.108,25481.0,25478.0,0.39608678]
[1693591481797,0.008,25481.0,25478.0,0.39608678]
[1693591481997,0.008,25481.0,25480.0,0.38708678]
[1693591482216,0.008,25481.0,25480.0,0.68708678]
[1693591482431,0.008,25481.0,25480.0,0.70708678]
[1693591482846,0.004,25481.0,25480.0,0.70708678]
[1693591483607,0.008,25481.0,25480.0,0.71608678]
[1693591484938,0.00792641,25481.0,25480.0,0.71608678]
[1693591486011,0.004,25481.0,25480.0,0.71608678]
[1693591486208,0.003,25481.0,25480.0,0.73908678]
[1693591486616,0.006,25481.0,25480.0,0.77608678]
[1693591486854,0.003,25481.0,25480.0,0.74408678]
[1693591487059,0.003,25481.0,25480.0,0.77608678]
[1693591487060,0.006,25481.0,25480.0,0.77608678]
[1693591489304,0.006,25481.0,25480.0,0.87002377]
[1693591490557,0.006,25481.0,25480.0,1.41140772]
[1693591490770,0.006,25481.0,25480.0,0.87002377]
[1693591492473,0.006,25481.0,25480.0,0.88179726]
[1693591493877,0.006,25481.0,25480.0,1.02256463]
[1693591494080,0.006,25481.0,25480.0,1.32874125]
[1693591496049,0.006,25481.0,25480.0,1.51645569]
[1693591497044,0.006,25481.0,25480.0,1.37568832]
[1693591497174,0.006,25481.0,25480.0,2.0200308]
[1693591497407,0.176939,25493.0,25480.0,2.0200308]
[1693591497408,0.65956,25495.0,25480.0,1.87153256]
[1693591497622,0.08,25493.0,25489.0,0.38708678]
[1693591497813,0.08,25493.0,25490.0,0.32]
[1693591498054,0.08,25493.0,25491.0,0.38708678]
[1693591498396,0.2332,25493.0,25491.0,0.38708678]
[1693591498530,0.1532,25493.0,25491.0,0.38708678]
[1693591499839,0.2362,25493.0,25491.0,0.42408678]
[1693591500448,0.2402,25493.0,25491.0,0.45908678]
[1693591500868,0.2602,25493.0,25491.0,0.45908678]
[1693591501477,0.1602,25493.0,25492.0,0.70708678]
[1693591502233,0.1562,25493.0,25492.0,0.70708678]
[1693591502462,0.1532,25493.0,25492.0,0.70708678]
[1693591502663,0.1562,25493.0,25492.0,0.74408678]
[1693591502882,0.1592,25493.0,25492.0,0.78108678]
[1693591503087,0.1532,25493.0,25492.0,0.70708678]
[1693591503341,0.1562,25493.0,25492.0,0.74408678]
[1693591503497,0.1592,25493.0,25492.0,0.78108678]
[1693591504381,0.67344,25499.0,25492.0,0.78108678]
[1693591504583,0.67344,25499.0,25492.0,0.394]
[1693591504584,0.1549,25496.0,25492.0,0.394]
[1693591504805,0.1549,25496.0,25492.0,0.094]
[1693591505249,0.1549,25496.0,25492.0,0.057]
[1693591505650,0.1549,25496.0,25492.0,0.02]
[1693591505971,0.1549,25496.0,25492.0,0.057]
[1693591506173,0.1549,25496.0,25492.0,0.094]
[1693591506376,0.1549,25496.0,25492.0,0.057]
[1693591506877,0.1549,25496.0,25492.0,0.094]
[1693591507019,0.1549,25496.0,25492.0,0.057]
[1693591507216,0.6,25499.0,25492.0,0.02]
[1693591507415,0.1503,25498.0,25492.0,0.02]
[1693591507711,0.30513471,25498.0,25496.0,0.38708678]
[1693591507915,0.1503,25498.0,25497.0,0.32]
[1693591508050,0.1503,25498.0,25497.0,0.70708678]